{"text_format":"1","workbook":"xlsx","n_sheets":1,"sheets":["Form_44"],"not_rendered":{"charts":0,"images":2,"macros":1,"external_links":2,"defined_names":13,"comments":1,"pivot_tables":0},"unopened":[],"bounds":{"document_bytes":16777216,"sheet_cells":100000,"rows_first":2000,"rows_last":500,"rows_between":2000,"halvings":0,"cell_chars":16384,"cell_head_chars":4096},"cells_cut":0,"cells_raw":0,"read":"whole","date_system":"1900"}

{"sheet":"Form_44","index":0,"n_rows":34,"n_cols":26,"rows_kept":34,"cut":false,"hidden":false,"merged":[[33,0,34,1],[33,2,34,6],[33,8,34,11],[33,12,34,14],[5,0,5,14],[6,0,6,14],[27,2,27,14],[30,1,30,14],[31,1,31,14],[7,13,10,13],[7,14,10,14],[7,3,7,8],[25,0,25,12],[28,1,28,14],[7,0,10,0],[7,9,10,9],[1,13,1,14],[2,0,2,14],[3,0,3,14],[1,0,1,11],[4,0,4,14],[7,10,10,10],[7,11,10,11],[7,12,10,12],[7,1,10,1],[32,1,32,14]]}
[]
["jktLFkku ljdkj\nçkfof/kd f'k{kk e.My] jktLFkku] tks/kiqj \nijh{kk l= 2022&23 ¼ukWu&bath-] okf\"kZd½",null,null,null,null,null,null,null,null,null,null,null,null,"ikfjJfed foi=&44",null,null,null,null,null,null,0,null,null,null,0,11]
["ijh{kk dsUnz @laLFkku dk uke ,oa iwjk irk--------------------------------------------------------------------------------------------------------------------------------------------------- ijh{kk dsUnz dksM----------------------------------------------------------------------------------------------",null,null,null,null,null,null,null,null,null,null,null,null,null,null,null,null,null,null,null,1,null,null,null,1,12]
["ijh{kk dsUnz@laLFkku ds cSad dk uke ------------------------------------------------------------------------  [kkrk la[;k ----------------------laLFkku dk isu uEcj---------------------------------- vkbZ,Q,llh dksM----------------------------------------",null,null,null,null,null,null,null,null,null,null,null,null,null,null,null,null,null,null,null,2,null,null,null,2,13]
[null,null,null,null,null,null,null,null,null,null,null,null,null,null,null,null,null,null,null,null,null,null,null,null,null,14]
["¼1½ dkWye dksM es ijh{kk dsUnz v/kh{kd gsrq 11] vfrfjDr ijh{kk dsUnzz  v/kh{kd gsrq 12] ijh{kk oh{kd gsrq 13] Eak=kyf;d gsrq 14 ,oa prqFkZ Js.kh deZpkjh gsrq 15 vafdr djsaA",null,null,null,null,null,null,null,null,null,null,null,null,null,null,null,null,null,null,null,null,null,null,null,null,15]
["¼2½ fnukad @ikjh okys dkWye esa mifLFkfr fnol @ ikjh ds fnu 1 vafdr djsa vuqifLFfr ij 0 vafdr djsaA dqy jkf'k okys dkWye  esa x.kuk Lor% gh gksxhA vr% bl dkWye esa dqN vafdr ugha djsA"]
["SN.","Officer/Employee Name in Capital Letters with Designation\n",null,"Exam Date",null,null,null,null,null,"EXTRA-BEFORE","EXTRA-AFTER","TOTAL SESSIONS","RATE","TOTAL AMOUNT","SIGNATURE"]
[null,null,null,"2023-06-09","2023-06-10","2023-06-12","2023-06-13","2023-06-14","2023-06-15"]
[null,null,"STUDENT STRENGTH"]
[null,null,"CODE"]
[{"$f":"IF(B12=\"\",\"\",1)","v":""},null,null,0,null,null,null,null,0,null,null,{"$f":"SUM(D12:K12)","v":0},null,{"$f":"IF(C12=\"\",0,IF(B12=\"\",0,IF(C12=11,L12*100,IF(C12=12,L12*75,IF(C12=13,ROUND(L12*70,0),IF(C12=14,L12*40,IF(C12=15,L12*30)))))))","v":0}]
[{"$f":"IF(B13=\"\",\"\",A12+1)","v":""},null,null,null,null,null,null,null,null,null,null,0,null,0]
[{"$f":"IF(B14=\"\",\"\",A13+1)","v":""},null,null,null,null,null,null,null,null,null,null,0,null,0]
[{"$f":"IF(B15=\"\",\"\",#REF!+1)","v":""},null,null,null,null,null,null,null,null,null,null,{"$f":"SUM(D15:K15)","v":0},null,0]
[{"$f":"IF(B16=\"\",\"\",#REF!+1)","v":""},null,null,null,null,null,null,null,null,null,null,{"$f":"SUM(D16:K16)","v":0},null,0]
["",null,null,null,null,null,null,null,null,null,null,0,null,0]
["",null,null,null,null,null,null,null,null,null,null,0,null,0]
[null,null,null,null,null,null,null,null,null,null,null,0,null,0]
[null,null,null,null,null,null,null,null,null,null,null,0,null,0]
[null,null,null,null,null,null,null,null,null,null,null,0,null,0]
[null,null,null,null,null,null,null,null,null,null,null,0,null,0]
[null,null,null,null,null,null,null,null,null,null,null,0,null,0]
[null,null,null,null,null,null,null,null,null,null,null,0,null,0]
[null,null,null,null,null,null,null,null,null,null,null,0,null,0]
["Grand Total",null,null,null,null,null,null,null,null,null,null,null,null,{"$f":"SUM(N12:N25)","v":0}]
[null,"dqy :Ik;s vadks esa",{"$f":"+N26","v":0}]
[null,"dqy :Ik;s 'kCnksa esa ",{"$f":"IF(N26>0, SUBSTITUTE(spellnumber(N26),\"Dollars and No Cents\",\"only\"),\"Rupees ….Nil ….\")","v":"Rupees ….Nil …."}]
[null,"No.                                         e.My dk;kZy; ç;ksxkFkZ\nfnukad                                          çekf.kr ,oa ikfjr \n\n"]
["izek.k i=%&"]
[1,"izekf.kr fd;k tkrk gS fd izkfof/kd f'k{kk e.My] jktFkku] tks/kiqj ijh{kk ckcr~ le;&le; ij izlkfjr funsZ'k ;Fkk ijh{kk v/kh{kd funsZ'k iqfLrwdk dh ikyuk djrs gq, fu/kkZfjr ekin.M vuqlkj dkfeZdksa dh lsok,as izkIr djrs gq, ikfjJfed nkok funsZ'kkuqlkj vko';d foi=ksa dks layXu djrs gq, izLrqr fd;k x;k gSA"]
[2,"Hkqxrku gsrq ;g fcy izFke ckj izLrqr x;k gSA"]
[3,"Hkqxrku forj.k I'pkr izkfIr jlhn e.My dks fHktok nh tk;sxhA"]
["izHkkjh vf/kdkjh",null,"izHkkjh",null,null,null,null,null,null,null,null,null,"iz/kkukpk;Z gLrk{kj e; lhy"]